[Event "*** Titled Tuesday 3|2 Blitz"]
[Site "Chess.com"]
[Date "2017.03.07"]
[Round "5"]
[White "MattyDPerrine"]
[Black "jcgs1030"]
[Result "1-0"]
[WhiteElo "2213"]
[BlackElo "2278"]
[TimeControl "180+2"]
[EndTime "14:09:26 PST"]
[Termination "MattyDPerrine won by resignation"]

1. Nf3 {[%clk 0:03:02]} 1... Nf6 {[%clk 0:02:59.4]} 2. g3 {[%clk 0:03:03]} 2...
g6 {[%clk 0:03:00]} 3. Bg2 {[%clk 0:03:03.6]} 3... Bg7 {[%clk 0:03:01]} 4. O-O
{[%clk 0:03:03.2]} 4... O-O {[%clk 0:03:02.5]} 5. d4 {[%clk 0:03:01.4]} 5... d5
{[%clk 0:03:00.2]} 6. c4 {[%clk 0:03:01.8]} 6... dxc4 {[%clk 0:02:59.5]} 7. Na3
{[%clk 0:03:03]} 7... c3 {[%clk 0:03:00.6]} 8. bxc3 {[%clk 0:03:04.9]} 8... c5
{[%clk 0:03:01.8]} 9. Rb1 {[%clk 0:02:56.3]} 9... Nc6 {[%clk 0:02:49.3]} 10. Nc4
{[%clk 0:02:55.7]} 10... Be6 {[%clk 0:02:47.9]} 11. Qa4 {[%clk 0:02:56.4]} 11...
Bd5 {[%clk 0:02:42.6]} 12. dxc5 {[%clk 0:02:46]} 12... Nd7 {[%clk 0:02:39.9]}
13. Be3 {[%clk 0:02:33.6]} 13... Qc7 {[%clk 0:02:25.5]} 14. Rfd1 {[%clk
0:02:18.5]} 14... Be4 {[%clk 0:02:16.5]} 15. Rbc1 {[%clk 0:02:13.5]} 15... Rfd8
{[%clk 0:02:07]} 16. Na3 {[%clk 0:02:02.8]} 16... Bxf3 {[%clk 0:01:48.1]} 17.
Bxf3 {[%clk 0:01:58.9]} 17... Nde5 {[%clk 0:01:48.7]} 18. Bd5 {[%clk 0:01:27]}
18... e6 {[%clk 0:01:41.9]} 19. Nb5 {[%clk 0:01:21.1]} 19... Qe7 {[%clk
0:01:38.8]} 20. Bg2 {[%clk 0:01:17.4]} 20... h5 {[%clk 0:01:37.6]} 21. h3 {[%clk
0:01:03.9]} 21... a6 {[%clk 0:01:28.1]} 22. Nd6 {[%clk 0:00:58.1]} 22... Qc7
{[%clk 0:01:26.8]} 23. Rb1 {[%clk 0:00:51.3]} 23... Rab8 {[%clk 0:01:21.6]} 24.
Bg5 {[%clk 0:00:42.4]} 24... f6 {[%clk 0:01:10.6]} 25. Be3 {[%clk 0:00:41.5]}
25... Qa5 {[%clk 0:01:05.2]} 26. Qb3 {[%clk 0:00:30.7]} 26... Kh7 {[%clk
0:00:54.4]} 27. Qxe6 {[%clk 0:00:14.7]} 27... Qxc3 {[%clk 0:00:55]} 28. Ne4
{[%clk 0:00:15.5]} 28... Rxd1+ {[%clk 0:00:48.4]} 29. Rxd1 {[%clk 0:00:17.4]}
29... Qb2 {[%clk 0:00:49.5]} 30. Kf1 {[%clk 0:00:15.2]} 30... Rf8 {[%clk
0:00:44.8]} 31. Bd2 {[%clk 0:00:09.4]} 31... Nd4 {[%clk 0:00:37.9]} 32. Qd5
{[%clk 0:00:07.5]} 32... Re8 {[%clk 0:00:18.9]} 33. e3 {[%clk 0:00:08.5]} 33...
Qb5+ {[%clk 0:00:18.1]} 34. Kg1 {[%clk 0:00:08.9]} 34... Ne2+ {[%clk 0:00:18.8]}
35. Kh2 {[%clk 0:00:10]} 35... Nd3 {[%clk 0:00:19.7]} 36. Nd6 {[%clk 0:00:09.2]}
36... Qd7 {[%clk 0:00:17.6]} 37. Qxd3 {[%clk 0:00:10]} 37... Nxg3 {[%clk
0:00:16.3]} 38. fxg3 {[%clk 0:00:11.1]} 38... Re5 {[%clk 0:00:17.3]} 39. Bc3
{[%clk 0:00:11.9]} 39... Rg5 {[%clk 0:00:18.4]} 40. h4 {[%clk 0:00:12.4]} 40...
Rg4 {[%clk 0:00:19.4]} 41. Bh3 {[%clk 0:00:13.9]} 41... f5 {[%clk 0:00:18.9]}
42. Bxg4 {[%clk 0:00:14.9]} 42... hxg4 {[%clk 0:00:20.8]} 43. Bxg7 {[%clk
0:00:16.2]} 43... Qxg7 {[%clk 0:00:21.4]} 44. Qd4 {[%clk 0:00:17.6]} 44... Qh6
{[%clk 0:00:22.2]} 45. Nf7 {[%clk 0:00:18.8]} 45... Qf8 {[%clk 0:00:22.7]} 46.
Qf6 {[%clk 0:00:19.9]} 46... Kg8 {[%clk 0:00:23.5]} 47. Rd8 {[%clk 0:00:20.4]}
1-0

[Event "*** Titled Tuesday 3|2 Blitz"]
[Site "Chess.com"]
[Date "2017.03.07"]
[Round "5"]
[White "chessking2151"]
[Black "iturrizaga"]
[Result "0-1"]
[WhiteElo "2384"]
[BlackElo "2644"]
[TimeControl "180+2"]
[EndTime "14:09:34 PST"]
[Termination "iturrizaga won by resignation"]

1. e4 {[%clk 0:03:02]} 1... c5 {[%clk 0:03:00.9]} 2. c3 {[%clk 0:03:00.7]} 2...
Nf6 {[%clk 0:03:01.6]} 3. e5 {[%clk 0:03:01.3]} 3... Nd5 {[%clk 0:03:03.3]} 4.
Nf3 {[%clk 0:03:02.2]} 4... g6 {[%clk 0:03:03.6]} 5. Bc4 {[%clk 0:03:00.9]} 5...
Nb6 {[%clk 0:03:04]} 6. Bb3 {[%clk 0:03:02.1]} 6... Bg7 {[%clk 0:03:05.3]} 7.
O-O {[%clk 0:03:02.4]} 7... O-O {[%clk 0:03:05.9]} 8. d4 {[%clk 0:03:01.7]} 8...
cxd4 {[%clk 0:03:07.8]} 9. cxd4 {[%clk 0:03:02.7]} 9... d6 {[%clk 0:03:09.3]}
10. Nc3 {[%clk 0:03:02.7]} 10... Nc6 {[%clk 0:03:09]} 11. Qe2 {[%clk 0:03:03.7]}
11... Bg4 {[%clk 0:03:05.4]} 12. Rd1 {[%clk 0:02:54.1]} 12... dxe5 {[%clk
0:02:53.2]} 13. dxe5 {[%clk 0:02:51.4]} 13... Qc8 {[%clk 0:02:51.1]} 14. Bf4
{[%clk 0:02:49.3]} 14... Bxf3 {[%clk 0:02:48.5]} 15. gxf3 {[%clk 0:02:28.4]}
15... Qf5 {[%clk 0:02:48.5]} 16. Bg3 {[%clk 0:02:22.1]} 16... Bxe5 {[%clk
0:02:44.7]} 17. Bc2 {[%clk 0:02:21.5]} 17... Qh5 {[%clk 0:02:44.3]} 18. Be4
{[%clk 0:02:17.9]} 18... Bf6 {[%clk 0:02:29]} 19. Rac1 {[%clk 0:02:14.2]} 19...
Nd4 {[%clk 0:02:27.8]} 20. Qe3 {[%clk 0:02:14.1]} 20... Nc4 {[%clk 0:02:27.5]}
21. Qf4 {[%clk 0:02:09.2]} 21... Nxb2 {[%clk 0:02:21.2]} 22. Rd2 {[%clk
0:02:02.9]} 22... Bg5 {[%clk 0:02:12.4]} 23. Rxd4 {[%clk 0:01:39.9]} 23... Bxf4
{[%clk 0:02:12.5]} 24. Bxf4 {[%clk 0:01:41.8]} 24... Rad8 {[%clk 0:02:02.8]} 25.
Rd5 {[%clk 0:01:29.1]} 25... Qh3 {[%clk 0:01:41.1]} 26. Rb1 {[%clk 0:01:15.4]}
26... Rc8 {[%clk 0:01:09.7]} 27. Ne2 {[%clk 0:01:08.8]} 27... Nc4 {[%clk
0:00:44.3]} 28. Bg5 {[%clk 0:01:05.6]} 28... Nd6 {[%clk 0:00:24.4]} 29. Nf4
{[%clk 0:00:37.9]} 29... Qd7 {[%clk 0:00:24.8]} 30. Nd3 {[%clk 0:00:35.8]} 30...
f6 {[%clk 0:00:23.1]} 31. Bh6 {[%clk 0:00:36.2]} 31... Rfd8 {[%clk 0:00:23.4]}
32. Nc5 {[%clk 0:00:36.6]} 32... Qh3 {[%clk 0:00:23.9]} 33. Rbd1 {[%clk
0:00:33.1]} 33... Qxh6 {[%clk 0:00:21.7]} 34. Ne6 {[%clk 0:00:31.7]} 34... Re8
{[%clk 0:00:22.7]} 35. Nd4 {[%clk 0:00:25.6]} 35... Qh4 {[%clk 0:00:18.5]} 36.
Re1 {[%clk 0:00:21.3]} 36... Qh3 {[%clk 0:00:14.1]} 37. Bb1 {[%clk 0:00:18.3]}
37... e5 {[%clk 0:00:13.2]} 38. Ne2 {[%clk 0:00:17.6]} 38... Nf5 {[%clk
0:00:14]} 39. Be4 {[%clk 0:00:17.6]} 39... Nh4 {[%clk 0:00:15]} 40. f4 {[%clk
0:00:17.1]} 40... exf4 {[%clk 0:00:15.7]} 41. Rd3 {[%clk 0:00:06.8]} 41... Qg4+
{[%clk 0:00:14.9]} 42. Ng3 {[%clk 0:00:06.8]} 42... Rxe4 {[%clk 0:00:15.8]} 43.
Rxe4 {[%clk 0:00:06.5]} 43... Rc1+ {[%clk 0:00:17.4]} 0-1

[Event "*** Titled Tuesday 3|2 Blitz"]
[Site "Chess.com"]
[Date "2017.03.07"]
[Round "5"]
[White "Buffy7"]
[Black "GMHess"]
[Result "0-1"]
[WhiteElo "2497"]
[BlackElo "2580"]
[TimeControl "180+2"]
[EndTime "14:09:39 PST"]
[Termination "GMHess won by resignation"]

1. c4 {[%clk 0:03:02]} 1... g6 {[%clk 0:03:00.3]} 2. d4 {[%clk 0:03:02.1]} 2...
Bg7 {[%clk 0:03:01.4]} 3. Nf3 {[%clk 0:03:03.4]} 3... c5 {[%clk 0:03:01.9]} 4.
e4 {[%clk 0:03:03.1]} 4... cxd4 {[%clk 0:03:03]} 5. Nxd4 {[%clk 0:03:05]} 5...
Nc6 {[%clk 0:03:04.6]} 6. Be3 {[%clk 0:03:05.8]} 6... Nf6 {[%clk 0:03:03.3]} 7.
Nc3 {[%clk 0:03:06.7]} 7... O-O {[%clk 0:03:03.7]} 8. Be2 {[%clk 0:03:08.1]}
8... d6 {[%clk 0:03:04.5]} 9. O-O {[%clk 0:03:09.2]} 9... Bd7 {[%clk 0:03:06.1]}
10. Qd2 {[%clk 0:03:10]} 10... Rc8 {[%clk 0:03:07.3]} 11. Rac1 {[%clk
0:03:09.6]} 11... a6 {[%clk 0:03:08]} 12. b3 {[%clk 0:03:02.2]} 12... Re8 {[%clk
0:03:02]} 13. f3 {[%clk 0:03:03.3]} 13... Qa5 {[%clk 0:03:02.6]} 14. Nxc6 {[%clk
0:02:57.9]} 14... Bxc6 {[%clk 0:02:53.2]} 15. a4 {[%clk 0:02:50.8]} 15... Nd7
{[%clk 0:02:45.6]} 16. Rc2 {[%clk 0:02:27.4]} 16... Nc5 {[%clk 0:01:54.6]} 17.
Rb1 {[%clk 0:02:27.8]} 17... Bxc3 {[%clk 0:01:33.2]} 18. Qxc3 {[%clk 0:02:08.3]}
18... Qxc3 {[%clk 0:01:33.5]} 19. Rxc3 {[%clk 0:02:10.2]} 19... a5 {[%clk
0:01:30.3]} 20. Rcc1 {[%clk 0:02:02.4]} 20... b6 {[%clk 0:01:06.6]} 21. h4
{[%clk 0:01:55.8]} 21... f5 {[%clk 0:01:04.2]} 22. exf5 {[%clk 0:01:53.9]} 22...
gxf5 {[%clk 0:01:06.1]} 23. Rd1 {[%clk 0:01:51]} 23... Kf7 {[%clk 0:00:58.4]}
24. Rd2 {[%clk 0:01:27.7]} 24... Rg8 {[%clk 0:00:52.1]} 25. Bd1 {[%clk
0:01:21.6]} 25... Rb8 {[%clk 0:00:39.9]} 26. Kh2 {[%clk 0:01:20.4]} 26... Na6
{[%clk 0:00:24.7]} 27. Bc2 {[%clk 0:01:21]} 27... Bd7 {[%clk 0:00:24.2]} 28. Re1
{[%clk 0:01:15]} 28... Nb4 {[%clk 0:00:21.6]} 29. Bb1 {[%clk 0:01:16.2]} 29...
Rge8 {[%clk 0:00:18]} 30. Bd4 {[%clk 0:00:59.9]} 30... Rg8 {[%clk 0:00:12.8]}
31. Bc3 {[%clk 0:00:48]} 31... Nc6 {[%clk 0:00:11.1]} 32. Rd5 {[%clk 0:00:44.6]}
32... Be6 {[%clk 0:00:11.8]} 33. Rd2 {[%clk 0:00:40]} 33... Bd7 {[%clk
0:00:12.4]} 34. Rde2 {[%clk 0:00:35.9]} 34... Rg6 {[%clk 0:00:10.9]} 35. g4
{[%clk 0:00:34.3]} 35... Rh6 {[%clk 0:00:10]} 36. Kg3 {[%clk 0:00:31.5]} 36...
Rg8 {[%clk 0:00:09.2]} 37. g5 {[%clk 0:00:32.4]} 37... Rhg6 {[%clk 0:00:07.3]}
38. f4 {[%clk 0:00:33.3]} 38... h6 {[%clk 0:00:08.7]} 39. Kf2 {[%clk 0:00:19.7]}
39... hxg5 {[%clk 0:00:09.4]} 40. fxg5 {[%clk 0:00:21.6]} 40... e5 {[%clk
0:00:09.2]} 41. Rg1 {[%clk 0:00:21.4]} 41... Rh8 {[%clk 0:00:10.2]} 42. Kg3
{[%clk 0:00:19.7]} 42... f4+ {[%clk 0:00:09.3]} 43. Kf2 {[%clk 0:00:21.1]} 43...
Rxh4 {[%clk 0:00:07.9]} 44. Bxg6+ {[%clk 0:00:22.8]} 44... Kxg6 {[%clk
0:00:09.8]} 45. Rd1 {[%clk 0:00:24.2]} 45... Rh2+ {[%clk 0:00:09.6]} 46. Kf1
{[%clk 0:00:25.8]} 46... Rh1+ {[%clk 0:00:10.7]} 47. Kf2 {[%clk 0:00:25.5]}
47... Rxd1 {[%clk 0:00:12.6]} 48. Rd2 {[%clk 0:00:27]} 48... Rxd2+ {[%clk
0:00:13.5]} 49. Bxd2 {[%clk 0:00:28.9]} 49... Bf5 {[%clk 0:00:14.5]} 0-1

[Event "*** Titled Tuesday 3|2 Blitz"]
[Site "Chess.com"]
[Date "2017.03.07"]
[Round "5"]
[White "Smirnov_Pavel"]
[Black "igorkovalenko"]
[Result "0-1"]
[WhiteElo "2657"]
[BlackElo "2700"]
[TimeControl "180+2"]
[EndTime "14:09:41 PST"]
[Termination "igorkovalenko won by resignation"]

1. d4 {[%clk 0:03:02]} 1... Nf6 {[%clk 0:02:59.5]} 2. c4 {[%clk 0:03:03.6]} 2...
e6 {[%clk 0:03:01]} 3. g3 {[%clk 0:03:04.4]} 3... c5 {[%clk 0:02:55.5]} 4. Nf3
{[%clk 0:03:05]} 4... cxd4 {[%clk 0:02:40.3]} 5. Nxd4 {[%clk 0:03:05.8]} 5...
Qc7 {[%clk 0:02:38.4]} 6. Nc3 {[%clk 0:03:06.6]} 6... a6 {[%clk 0:02:39.3]} 7.
Bg2 {[%clk 0:03:07]} 7... Nc6 {[%clk 0:02:37.9]} 8. O-O {[%clk 0:03:06.7]} 8...
Bb4 {[%clk 0:02:36.4]} 9. Nxc6 {[%clk 0:02:40.9]} 9... bxc6 {[%clk 0:02:35.1]}
10. Bf4 {[%clk 0:02:41.2]} 10... e5 {[%clk 0:02:11.2]} 11. Bg5 {[%clk
0:02:41.9]} 11... Be7 {[%clk 0:02:12.3]} 12. Rc1 {[%clk 0:02:12.8]} 12... d6
{[%clk 0:02:02.9]} 13. Bxf6 {[%clk 0:02:05.9]} 13... Bxf6 {[%clk 0:02:03.5]} 14.
Ne4 {[%clk 0:01:46.8]} 14... Be7 {[%clk 0:02:04.2]} 15. c5 {[%clk 0:01:48.1]}
15... d5 {[%clk 0:01:49.3]} 16. Nd6+ {[%clk 0:01:49.1]} 16... Bxd6 {[%clk
0:01:50.6]} 17. cxd6 {[%clk 0:01:50.1]} 17... Qxd6 {[%clk 0:01:52.3]} 18. Rxc6
{[%clk 0:01:51.1]} 18... Qxc6 {[%clk 0:01:53]} 19. Bxd5 {[%clk 0:01:52.2]} 19...
Qb5 {[%clk 0:01:46.8]} 20. Bxa8 {[%clk 0:01:50.4]} 20... O-O {[%clk 0:01:39.8]}
21. Qc2 {[%clk 0:01:29.8]} 21... Bh3 {[%clk 0:01:32.2]} 22. Bc6 {[%clk
0:01:09.7]} 22... Qa5 {[%clk 0:01:17]} 23. Rd1 {[%clk 0:00:49.3]} 23... Qxa2
{[%clk 0:01:10.9]} 24. Bd5 {[%clk 0:00:38.8]} 24... Qa5 {[%clk 0:01:07]} 25. Qe4
{[%clk 0:00:39.6]} 25... Qc7 {[%clk 0:00:53.8]} 26. g4 {[%clk 0:00:33.3]} 26...
Qc8 {[%clk 0:00:41.2]} 27. f3 {[%clk 0:00:32.3]} 27... Qc5+ {[%clk 0:00:41.7]}
28. e3 {[%clk 0:00:23.6]} 28... Kh8 {[%clk 0:00:39.3]} 29. b4 {[%clk 0:00:13.6]}
29... Qc3 {[%clk 0:00:35.7]} 30. Qd3 {[%clk 0:00:13.9]} 30... Qxb4 {[%clk
0:00:35.9]} 31. Kf2 {[%clk 0:00:14.8]} 31... f5 {[%clk 0:00:35.3]} 32. Rb1
{[%clk 0:00:13.4]} 32... Qd6 {[%clk 0:00:24.2]} 33. gxf5 {[%clk 0:00:09.6]}
33... e4 {[%clk 0:00:22.2]} 34. Qxe4 {[%clk 0:00:09.3]} 34... Qxh2+ {[%clk
0:00:23.3]} 35. Ke1 {[%clk 0:00:09.8]} 35... Bxf5 {[%clk 0:00:22.7]} 36. Qe7
{[%clk 0:00:10.1]} 36... Qg1+ {[%clk 0:00:18.3]} 37. Ke2 {[%clk 0:00:10.2]}
37... Qh2+ {[%clk 0:00:13.9]} 38. Ke1 {[%clk 0:00:10.6]} 38... Rc8 {[%clk
0:00:14.3]} 39. Rd1 {[%clk 0:00:06.3]} 39... Qg1+ {[%clk 0:00:13.6]} 40. Ke2
{[%clk 0:00:06.9]} 40... Rc2+ {[%clk 0:00:14.4]} 41. Rd2 {[%clk 0:00:07.8]}
41... Qg2+ {[%clk 0:00:15.9]} 0-1

[Event "*** Titled Tuesday 3|2 Blitz"]
[Site "Chess.com"]
[Date "2017.03.07"]
[Round "5"]
[White "Generalas"]
[Black "alekroth64"]
[Result "0-1"]
[WhiteElo "2174"]
[BlackElo "2273"]
[TimeControl "180+2"]
[EndTime "14:09:46 PST"]
[Termination "alekroth64 won on time"]

1. e4 {[%clk 0:03:02]} 1... e5 {[%clk 0:02:59.8]} 2. Nf3 {[%clk 0:03:01.3]} 2...
Nc6 {[%clk 0:03:00.5]} 3. Bb5 {[%clk 0:03:00.5]} 3... a6 {[%clk 0:03:01.7]} 4.
Ba4 {[%clk 0:02:59.6]} 4... Nf6 {[%clk 0:03:03]} 5. Kf1 {[%clk 0:02:57.7]} 5...
Nxe4 {[%clk 0:02:53.8]} 6. Qe2 {[%clk 0:02:53.1]} 6... Nd6 {[%clk 0:02:48.2]} 7.
Bxc6 {[%clk 0:02:48.9]} 7... dxc6 {[%clk 0:02:47.9]} 8. Nxe5 {[%clk 0:02:49.1]}
8... Be7 {[%clk 0:02:48.6]} 9. d4 {[%clk 0:02:47.6]} 9... O-O {[%clk 0:02:48.9]}
10. Nc3 {[%clk 0:02:42.1]} 10... Nf5 {[%clk 0:02:48.2]} 11. Be3 {[%clk
0:02:39.8]} 11... Nxd4 {[%clk 0:02:38.8]} 12. Bxd4 {[%clk 0:02:39.6]} 12... Qxd4
{[%clk 0:02:36.3]} 13. Nxc6 {[%clk 0:02:35.8]} 13... bxc6 {[%clk 0:02:36.5]} 14.
Qxe7 {[%clk 0:02:35.8]} 14... Be6 {[%clk 0:02:37.7]} 15. Rd1 {[%clk 0:02:21.7]}
15... Qc4+ {[%clk 0:02:27.8]} 16. Kg1 {[%clk 0:02:17.3]} 16... Rab8 {[%clk
0:02:20.4]} 17. Qa3 {[%clk 0:02:12]} 17... Rfd8 {[%clk 0:02:04.6]} 18. Rxd8+
{[%clk 0:02:11.3]} 18... Rxd8 {[%clk 0:02:04.6]} 19. Qe7 {[%clk 0:02:04.8]}
19... Qd4 {[%clk 0:02:02.7]} 20. h3 {[%clk 0:02:02.3]} 20... h6 {[%clk
0:01:57.8]} 21. Qxc7 {[%clk 0:01:54.1]} 21... Rc8 {[%clk 0:01:45.4]} 22. Qg3
{[%clk 0:01:49.4]} 22... Qd2 {[%clk 0:01:44.6]} 23. Kh2 {[%clk 0:01:12.7]} 23...
Qxc2 {[%clk 0:01:45]} 24. Re1 {[%clk 0:01:01.9]} 24... Qxb2 {[%clk 0:01:40.7]}
25. Re3 {[%clk 0:00:57.6]} 25... c5 {[%clk 0:01:32.9]} 26. f4 {[%clk 0:00:57.5]}
26... Qc2 {[%clk 0:01:29.9]} 27. Ne4 {[%clk 0:00:47.8]} 27... c4 {[%clk
0:01:22.3]} 28. Nf6+ {[%clk 0:00:28.6]} 28... Kf8 {[%clk 0:01:20.9]} 29. Nh5
{[%clk 0:00:28.7]} 29... Qg6 {[%clk 0:01:12.3]} 30. Qxg6 {[%clk 0:00:28.1]}
30... fxg6 {[%clk 0:01:12.9]} 31. Rxe6 {[%clk 0:00:13.4]} 31... gxh5 {[%clk
0:01:13.3]} 32. Re2 {[%clk 0:00:13.8]} 32... c3 {[%clk 0:01:10]} 33. Rc2 {[%clk
0:00:14.8]} 33... h4 {[%clk 0:01:02.4]} 34. Kg1 {[%clk 0:00:13.8]} 34... Kf7
{[%clk 0:01:02.2]} 35. Kf2 {[%clk 0:00:15.3]} 35... Kf6 {[%clk 0:01:03.1]} 36.
Ke3 {[%clk 0:00:17]} 36... Kf5 {[%clk 0:01:04]} 37. Kd3 {[%clk 0:00:16.2]} 37...
Kxf4 {[%clk 0:01:01.7]} 38. a4 {[%clk 0:00:13.4]} 38... Kg3 {[%clk 0:01:01.4]}
39. a5 {[%clk 0:00:13.9]} 39... g5 {[%clk 0:00:59.8]} 40. Kd4 {[%clk 0:00:14.3]}
40... Rc7 {[%clk 0:00:58.3]} 41. Kd5 {[%clk 0:00:15]} 41... h5 {[%clk
0:00:55.6]} 42. Kd6 {[%clk 0:00:15.3]} 42... Rc8 {[%clk 0:00:56.5]} 43. Kd5
{[%clk 0:00:16.7]} 43... g4 {[%clk 0:00:56]} 44. hxg4 {[%clk 0:00:11.3]} 44...
hxg4 {[%clk 0:00:56.4]} 45. Kd4 {[%clk 0:00:12.5]} 45... h3 {[%clk 0:00:53.3]}
46. gxh3 {[%clk 0:00:13.3]} 46... gxh3 {[%clk 0:00:54.9]} 47. Rc1 {[%clk
0:00:07]} 47... h2 {[%clk 0:00:54.5]} 48. Ke3 {[%clk 0:00:05.9]} 48... c2 {[%clk
0:00:54.1]} 49. Ke2 {[%clk 0:00:04.9]} 49... Kg2 {[%clk 0:00:51.6]} 0-1

[Event "*** Titled Tuesday 3|2 Blitz"]
[Site "Chess.com"]
[Date "2017.03.07"]
[Round "5"]
[White "Grebeniuk-S"]
[Black "AllStarShark"]
[Result "1-0"]
[WhiteElo "2428"]
[BlackElo "2265"]
[TimeControl "180+2"]
[EndTime "14:09:55 PST"]
[Termination "Grebeniuk-S won by checkmate"]

1. d4 {[%clk 0:03:02]} 1... d5 {[%clk 0:02:59.7]} 2. c4 {[%clk 0:03:02.9]} 2...
dxc4 {[%clk 0:03:01.6]} 3. e4 {[%clk 0:03:02.2]} 3... Nc6 {[%clk 0:03:01.1]} 4.
Nf3 {[%clk 0:02:55.3]} 4... Nf6 {[%clk 0:02:44.1]} 5. d5 {[%clk 0:02:45.5]} 5...
Na5 {[%clk 0:02:21.4]} 6. Nc3 {[%clk 0:02:43.2]} 6... e6 {[%clk 0:02:17.8]} 7.
Bg5 {[%clk 0:02:34.1]} 7... Be7 {[%clk 0:02:14]} 8. Bxc4 {[%clk 0:02:21.3]} 8...
Nxc4 {[%clk 0:02:11.1]} 9. Qa4+ {[%clk 0:02:22.4]} 9... Bd7 {[%clk 0:02:09.6]}
10. Qxc4 {[%clk 0:02:23]} 10... exd5 {[%clk 0:02:10.5]} 11. exd5 {[%clk
0:02:20.9]} 11... O-O {[%clk 0:01:59.2]} 12. O-O {[%clk 0:02:21.9]} 12... h6
{[%clk 0:01:54.6]} 13. Bh4 {[%clk 0:02:18.9]} 13... Ne8 {[%clk 0:01:52]} 14. Bg3
{[%clk 0:02:04.6]} 14... Bd6 {[%clk 0:01:52.1]} 15. Rfe1 {[%clk 0:01:59.1]}
15... Bxg3 {[%clk 0:01:52.4]} 16. hxg3 {[%clk 0:02:01]} 16... Nd6 {[%clk
0:01:53.6]} 17. Qf4 {[%clk 0:01:58.6]} 17... Re8 {[%clk 0:01:47.5]} 18. Ne5
{[%clk 0:01:51.9]} 18... a6 {[%clk 0:01:26.5]} 19. Ne4 {[%clk 0:01:49.6]} 19...
Rf8 {[%clk 0:01:18.3]} 20. Nxd6 {[%clk 0:01:25.1]} 20... cxd6 {[%clk 0:01:20.2]}
21. Nc4 {[%clk 0:01:26.1]} 21... Bb5 {[%clk 0:01:15.9]} 22. Nxd6 {[%clk
0:01:18]} 22... Qd7 {[%clk 0:01:16.4]} 23. Nf5 {[%clk 0:01:09.3]} 23... Rae8
{[%clk 0:01:06.9]} 24. Qg4 {[%clk 0:00:49.2]} 24... g6 {[%clk 0:01:03.4]} 25.
Nxh6+ {[%clk 0:00:46]} 25... Kg7 {[%clk 0:01:03.9]} 26. Qd4+ {[%clk 0:00:39.6]}
26... Kxh6 {[%clk 0:01:01.6]} 27. a4 {[%clk 0:00:38.9]} 27... Rxe1+ {[%clk
0:00:45.4]} 28. Rxe1 {[%clk 0:00:40]} 28... Bxa4 {[%clk 0:00:45.4]} 29. Re4
{[%clk 0:00:41.3]} 29... Bd1 {[%clk 0:00:33.6]} 30. Qxd1 {[%clk 0:00:39.4]}
30... Qf5 {[%clk 0:00:32]} 31. Qd4 {[%clk 0:00:37.5]} 31... g5 {[%clk
0:00:28.7]} 32. g4 {[%clk 0:00:33.8]} 32... Qg6 {[%clk 0:00:25.7]} 33. f4 {[%clk
0:00:27.7]} 33... Rd8 {[%clk 0:00:22.8]} 34. f5 {[%clk 0:00:25.3]} 34... Qg7
{[%clk 0:00:22.4]} 35. f6 {[%clk 0:00:20.5]} 35... Qg6 {[%clk 0:00:21.4]} 36.
Re3 {[%clk 0:00:20.1]} 36... Kh7 {[%clk 0:00:20.4]} 37. d6 {[%clk 0:00:18.8]}
37... Qb1+ {[%clk 0:00:18.6]} 38. Kh2 {[%clk 0:00:18]} 38... Kg8 {[%clk
0:00:20.1]} 39. d7 {[%clk 0:00:17]} 39... Qh7+ {[%clk 0:00:17.1]} 40. Kg3 {[%clk
0:00:14.9]} 40... Qh4+ {[%clk 0:00:17]} 41. Kf3 {[%clk 0:00:16.1]} 41... Kh7
{[%clk 0:00:15.8]} 42. Re8 {[%clk 0:00:15.5]} 42... Qh1 {[%clk 0:00:09]} 43.
Qd3+ {[%clk 0:00:14.4]} 43... Kh6 {[%clk 0:00:07.9]} 44. Rxd8 {[%clk 0:00:14.7]}
44... Qf1+ {[%clk 0:00:05.6]} 45. Qxf1 {[%clk 0:00:14.7]} 45... b5 {[%clk
0:00:05.6]} 46. Qd3 {[%clk 0:00:15.6]} 46... b4 {[%clk 0:00:06.1]} 47. Rh8#
{[%clk 0:00:17.5]} 1-0

[Event "*** Titled Tuesday 3|2 Blitz"]
[Site "Chess.com"]
[Date "2017.03.07"]
[Round "5"]
[White "Lupul_Cenusiu"]
[Black "TheCount"]
[Result "0-1"]
[WhiteElo "2405"]
[BlackElo "2561"]
[TimeControl "180+2"]
[EndTime "14:10:01 PST"]
[Termination "TheCount won by resignation"]

1. Nf3 {[%clk 0:03:02]} 1... Nf6 {[%clk 0:03:00.7]} 2. d4 {[%clk 0:03:02.7]}
2... g6 {[%clk 0:03:02]} 3. c4 {[%clk 0:03:03.5]} 3... Bg7 {[%clk 0:03:03.4]} 4.
Nc3 {[%clk 0:03:03.3]} 4... d5 {[%clk 0:03:04.6]} 5. e3 {[%clk 0:03:04]} 5...
O-O {[%clk 0:03:02.9]} 6. Qb3 {[%clk 0:03:05.1]} 6... e6 {[%clk 0:02:56.7]} 7.
Bd2 {[%clk 0:03:00.6]} 7... b6 {[%clk 0:02:37.1]} 8. Rc1 {[%clk 0:02:55.2]} 8...
Bb7 {[%clk 0:02:34.5]} 9. cxd5 {[%clk 0:02:55.8]} 9... Nxd5 {[%clk 0:02:33.1]}
10. Be2 {[%clk 0:02:55.8]} 10... Nd7 {[%clk 0:02:31.6]} 11. O-O {[%clk
0:02:50.1]} 11... c5 {[%clk 0:02:32.8]} 12. Rfd1 {[%clk 0:02:49.9]} 12... Qe7
{[%clk 0:02:32.3]} 13. Qa3 {[%clk 0:02:49.4]} 13... Rfd8 {[%clk 0:02:14.3]} 14.
dxc5 {[%clk 0:02:31.6]} 14... Nxc5 {[%clk 0:02:11.4]} 15. Na4 {[%clk 0:02:23]}
15... Nxa4 {[%clk 0:02:07.9]} 16. Qxa4 {[%clk 0:02:23.8]} 16... Bxb2 {[%clk
0:02:06.5]} 17. e4 {[%clk 0:02:06.3]} 17... Bxc1 {[%clk 0:01:20.9]} 18. Rxc1
{[%clk 0:02:04.5]} 18... Nf6 {[%clk 0:01:14.2]} 19. Bg5 {[%clk 0:02:04.7]} 19...
e5 {[%clk 0:01:15.6]} 20. h3 {[%clk 0:01:56.5]} 20... Kg7 {[%clk 0:01:14]} 21.
Rc3 {[%clk 0:01:24.9]} 21... h6 {[%clk 0:01:13.7]} 22. Bh4 {[%clk 0:01:25.9]}
22... Rac8 {[%clk 0:00:59.1]} 23. Rxc8 {[%clk 0:01:22.2]} 23... Bxc8 {[%clk
0:01:00.2]} 24. Bg3 {[%clk 0:01:07.3]} 24... Nd7 {[%clk 0:01:00.3]} 25. Qxa7
{[%clk 0:01:06]} 25... Qd6 {[%clk 0:01:00.9]} 26. Bb5 {[%clk 0:01:04.4]} 26...
f6 {[%clk 0:00:49.4]} 27. Kh2 {[%clk 0:00:51.5]} 27... Qb8 {[%clk 0:00:48.5]}
28. Qa3 {[%clk 0:00:46.6]} 28... Nc5 {[%clk 0:00:48.9]} 29. Qc3 {[%clk
0:00:31.4]} 29... Nxe4 {[%clk 0:00:44.1]} 30. Qb4 {[%clk 0:00:27.2]} 30... Nc5
{[%clk 0:00:44.7]} 31. Qh4 {[%clk 0:00:25.6]} 31... Qd6 {[%clk 0:00:37.6]} 32.
Qb4 {[%clk 0:00:16.2]} 32... Be6 {[%clk 0:00:34.5]} 33. a4 {[%clk 0:00:14.4]}
33... Bd5 {[%clk 0:00:32.9]} 34. Nh4 {[%clk 0:00:13.8]} 34... Ne4 {[%clk
0:00:27.2]} 35. Qb1 {[%clk 0:00:14.9]} 35... f5 {[%clk 0:00:24.7]} 36. Nf3
{[%clk 0:00:04.5]} 36... f4 {[%clk 0:00:24]} 37. Bh4 {[%clk 0:00:05.1]} 37... g5
{[%clk 0:00:25.2]} 38. Bd3 {[%clk 0:00:05.7]} 38... Nf6 {[%clk 0:00:17.7]} 39.
Nxg5 {[%clk 0:00:04.3]} 39... hxg5 {[%clk 0:00:18]} 40. Bxg5 {[%clk 0:00:05.6]}
40... e4 {[%clk 0:00:19.7]} 41. Bc2 {[%clk 0:00:06.8]} 41... f3+ {[%clk
0:00:19.4]} 42. g3 {[%clk 0:00:08.2]} 42... Qc5 {[%clk 0:00:20.3]} 43. Be3
{[%clk 0:00:05.3]} 43... Qc3 {[%clk 0:00:20.5]} 44. Qc1 {[%clk 0:00:06.4]} 44...
Rc8 {[%clk 0:00:20.1]} 45. Bh6+ {[%clk 0:00:07.2]} 45... Kf7 {[%clk 0:00:20]}
46. Qg5 {[%clk 0:00:07.7]} 46... Qxc2 {[%clk 0:00:20.2]} 47. Kg1 {[%clk
0:00:08.4]} 47... Qd1+ {[%clk 0:00:18.4]} 48. Kh2 {[%clk 0:00:09.6]} 48... Qf1
{[%clk 0:00:19.1]} 0-1